[Event "*** SCC Grand Prix: Titled Tuesday Blitz"]
[Site "Chess.com"]
[Date "2020.07.07"]
[Round "8"]
[White "mishanick"]
[Black "vladislavkovalev"]
[Result "0-1"]
[WhiteElo "2856"]
[BlackElo "2944"]
[TimeControl "180+1"]
[EndTime "11:37:03 PDT"]
[Termination "vladislavkovalev won by resignation"]

1. d4 {[%clk 0:02:59.2]} 1... Nf6 {[%clk 0:03:00.3]} 2. c4 {[%clk 0:02:59.8]}
2... g6 {[%clk 0:03:00.9]} 3. Nc3 {[%clk 0:02:59.7]} 3... Bg7 {[%clk 0:03:01.6]}
4. e4 {[%clk 0:03:00.4]} 4... d6 {[%clk 0:03:02.3]} 5. Be2 {[%clk 0:03:00.9]}
5... O-O {[%clk 0:03:02.7]} 6. Be3 {[%clk 0:03:01.5]} 6... c5 {[%clk 0:02:54.2]}
7. d5 {[%clk 0:03:00.4]} 7... e6 {[%clk 0:02:52.5]} 8. Nf3 {[%clk 0:02:58.3]}
8... exd5 {[%clk 0:02:49]} 9. cxd5 {[%clk 0:02:59.2]} 9... Re8 {[%clk
0:02:45.7]} 10. Nd2 {[%clk 0:02:58.6]} 10... Na6 {[%clk 0:02:46.2]} 11. O-O
{[%clk 0:02:57.3]} 11... Nc7 {[%clk 0:02:46]} 12. a4 {[%clk 0:02:57.3]} 12... b6
{[%clk 0:02:38.2]} 13. Bf4 {[%clk 0:02:53]} 13... Ba6 {[%clk 0:02:21.3]} 14.
Bxa6 {[%clk 0:02:09.2]} 14... Nxa6 {[%clk 0:02:22.2]} 15. Re1 {[%clk 0:02:08.6]}
15... Nh5 {[%clk 0:02:19.7]} 16. Be3 {[%clk 0:02:08.9]} 16... Nb4 {[%clk
0:02:16.2]} 17. Nc4 {[%clk 0:02:03.4]} 17... a6 {[%clk 0:02:14.1]} 18. f3 {[%clk
0:02:01.2]} 18... Rb8 {[%clk 0:02:10]} 19. Qd2 {[%clk 0:02:00.3]} 19... b5
{[%clk 0:02:07.5]} 20. axb5 {[%clk 0:01:59.8]} 20... axb5 {[%clk 0:02:08.4]} 21.
Na5 {[%clk 0:01:59.3]} 21... Qd7 {[%clk 0:02:07.8]} 22. Ne2 {[%clk 0:01:48.4]}
22... Ra8 {[%clk 0:02:04.9]} 23. Nb3 {[%clk 0:01:46.6]} 23... Rxa1 {[%clk
0:01:58.9]} 24. Rxa1 {[%clk 0:01:45.8]} 24... f5 {[%clk 0:01:59.2]} 25. Bxc5
{[%clk 0:01:09.9]} 25... dxc5 {[%clk 0:01:33.1]} 26. Nxc5 {[%clk 0:01:10.8]}
26... Qd6 {[%clk 0:01:33.6]} 27. Qxb4 {[%clk 0:01:10.9]} 27... Bf8 {[%clk
0:01:34.1]} 28. Rc1 {[%clk 0:00:36.2]} 28... Rc8 {[%clk 0:01:33.9]} 29. Qxb5
{[%clk 0:00:24.5]} 29... Rxc5 {[%clk 0:01:26.1]} 30. Rxc5 {[%clk 0:00:21.5]}
30... Qxc5+ {[%clk 0:01:27]} 31. Qxc5 {[%clk 0:00:22.1]} 31... Bxc5+ {[%clk
0:01:27.9]} 32. Kf1 {[%clk 0:00:22.5]} 32... fxe4 {[%clk 0:01:28.6]} 33. fxe4
{[%clk 0:00:22.9]} 33... Nf6 {[%clk 0:01:29.1]} 34. Nc3 {[%clk 0:00:21.2]} 34...
Bd4 {[%clk 0:01:28]} 35. Ke2 {[%clk 0:00:21.7]} 35... Be5 {[%clk 0:00:49.1]} 36.
h3 {[%clk 0:00:20.9]} 36... Kf7 {[%clk 0:00:49.7]} 37. Kd3 {[%clk 0:00:20.7]}
37... Ke7 {[%clk 0:00:50.3]} 38. Na4 {[%clk 0:00:20.7]} 38... Nh5 {[%clk
0:00:41.3]} 39. Ke3 {[%clk 0:00:12.8]} 39... Nf4 {[%clk 0:00:40.5]} 40. Kf3
{[%clk 0:00:12.9]} 40... Nd3 {[%clk 0:00:40.4]} 41. b3 {[%clk 0:00:13.3]} 41...
Kd6 {[%clk 0:00:34.4]} 42. Nb6 {[%clk 0:00:12.9]} 42... Bd4 {[%clk 0:00:25.7]}
43. Nc4+ {[%clk 0:00:12.3]} 43... Kc5 {[%clk 0:00:26.1]} 44. g3 {[%clk
0:00:09.6]} 44... Bc3 {[%clk 0:00:16.8]} 45. h4 {[%clk 0:00:07.4]} 45... Nc1
{[%clk 0:00:16.4]} 46. d6 {[%clk 0:00:05.5]} 46... Nxb3 {[%clk 0:00:11.6]} 47.
d7 {[%clk 0:00:05.8]} 47... Nd4+ {[%clk 0:00:12.1]} 48. Ke3 {[%clk 0:00:04]}
48... Ne6 {[%clk 0:00:12.4]} 49. Kd3 {[%clk 0:00:04.3]} 49... Bf6 {[%clk
0:00:12.2]} 50. e5 {[%clk 0:00:03.2]} 50... Be7 {[%clk 0:00:12.5]} 51. Nd6
{[%clk 0:00:03.8]} 51... Bxd6 {[%clk 0:00:11.1]} 52. exd6 {[%clk 0:00:04.7]}
52... Kxd6 {[%clk 0:00:12]} 0-1

[Event "*** SCC Grand Prix: Titled Tuesday Blitz"]
[Site "Chess.com"]
[Date "2020.07.07"]
[Round "8"]
[White "mfwagnerpeixoto"]
[Black "dpopadic"]
[Result "0-1"]
[WhiteElo "2213"]
[BlackElo "2391"]
[TimeControl "180+1"]
[EndTime "11:37:04 PDT"]
[Termination "dpopadic won on time"]

1. d4 {[%clk 0:03:00.9]} 1... Nf6 {[%clk 0:02:59.4]} 2. Nf3 {[%clk 0:02:59.2]}
2... g6 {[%clk 0:02:59.4]} 3. Bf4 {[%clk 0:02:57.8]} 3... Bg7 {[%clk 0:02:59.3]}
4. e3 {[%clk 0:02:58.2]} 4... d6 {[%clk 0:02:59.7]} 5. Be2 {[%clk 0:02:58.5]}
5... O-O {[%clk 0:02:59.9]} 6. h3 {[%clk 0:02:58.9]} 6... c5 {[%clk 0:03:00.2]}
7. dxc5 {[%clk 0:02:58.1]} 7... dxc5 {[%clk 0:02:59.7]} 8. Qxd8 {[%clk
0:02:56.1]} 8... Rxd8 {[%clk 0:02:59.3]} 9. Bc7 {[%clk 0:02:55.6]} 9... Re8
{[%clk 0:02:47.5]} 10. Nc3 {[%clk 0:02:51.8]} 10... Nc6 {[%clk 0:02:46]} 11.
O-O-O {[%clk 0:02:24.8]} 11... h6 {[%clk 0:02:43.2]} 12. Bb5 {[%clk 0:02:19.7]}
12... Bd7 {[%clk 0:02:36.5]} 13. e4 {[%clk 0:02:08.5]} 13... Rec8 {[%clk
0:02:29.3]} 14. Bh2 {[%clk 0:02:05.8]} 14... Be8 {[%clk 0:02:28.5]} 15. e5
{[%clk 0:02:01.3]} 15... Nh7 {[%clk 0:02:19.9]} 16. Nd5 {[%clk 0:01:57.6]} 16...
Bf8 {[%clk 0:02:15.3]} 17. Rhe1 {[%clk 0:01:18.8]} 17... e6 {[%clk 0:02:15.2]}
18. Nf6+ {[%clk 0:01:03]} 18... Nxf6 {[%clk 0:02:13.9]} 19. exf6 {[%clk
0:01:03.9]} 19... a6 {[%clk 0:02:06.9]} 20. Bf1 {[%clk 0:00:51.2]} 20... Rd8
{[%clk 0:02:06.2]} 21. Bc7 {[%clk 0:00:44.9]} 21... Rxd1+ {[%clk 0:01:59.2]} 22.
Rxd1 {[%clk 0:00:45.8]} 22... Rc8 {[%clk 0:01:58.4]} 23. Bg3 {[%clk 0:00:41.6]}
23... h5 {[%clk 0:01:51.3]} 24. c3 {[%clk 0:00:38.3]} 24... Rd8 {[%clk
0:01:33.1]} 25. Rxd8 {[%clk 0:00:34.7]} 25... Nxd8 {[%clk 0:01:33]} 26. Bd3
{[%clk 0:00:30]} 26... Nc6 {[%clk 0:01:24.1]} 27. Be4 {[%clk 0:00:28.6]} 27...
Bd7 {[%clk 0:01:19.8]} 28. Ne5 {[%clk 0:00:25.4]} 28... Nxe5 {[%clk 0:01:18.7]}
29. Bxe5 {[%clk 0:00:26.3]} 29... Bc8 {[%clk 0:01:02.5]} 30. f4 {[%clk
0:00:22.4]} 30... c4 {[%clk 0:01:01.1]} 31. Kd2 {[%clk 0:00:18.5]} 31... Bc5
{[%clk 0:01:00.9]} 32. g4 {[%clk 0:00:18.2]} 32... hxg4 {[%clk 0:01:00.1]} 33.
hxg4 {[%clk 0:00:19.1]} 33... Kf8 {[%clk 0:00:59.8]} 34. b4 {[%clk 0:00:15.6]}
34... cxb3 {[%clk 0:00:58.6]} 35. axb3 {[%clk 0:00:16.5]} 35... Ke8 {[%clk
0:00:57.8]} 36. b4 {[%clk 0:00:15.1]} 36... Bg1 {[%clk 0:00:55.1]} 37. Kc2
{[%clk 0:00:12.6]} 37... Kd7 {[%clk 0:00:50.1]} 38. Kb3 {[%clk 0:00:11.1]} 38...
Kd8 {[%clk 0:00:43.1]} 39. c4 {[%clk 0:00:11]} 39... Bf2 {[%clk 0:00:41.8]} 40.
c5 {[%clk 0:00:10.8]} 40... Be1 {[%clk 0:00:36.3]} 41. Kc4 {[%clk 0:00:10.6]}
41... Bd2 {[%clk 0:00:35.3]} 42. Kb3 {[%clk 0:00:08.7]} 42... Be3 {[%clk
0:00:34.2]} 43. Kc4 {[%clk 0:00:08]} 43... Bd2 {[%clk 0:00:31.2]} 44. Kb3 {[%clk
0:00:08.1]} 44... Be3 {[%clk 0:00:25]} 45. Kc4 {[%clk 0:00:08.3]} 45... Bg1
{[%clk 0:00:25.4]} 46. Kb3 {[%clk 0:00:07.8]} 46... Bh2 {[%clk 0:00:24.8]} 47.
Kc4 {[%clk 0:00:07.7]} 47... g5 {[%clk 0:00:23.9]} 48. Kd4 {[%clk 0:00:05.3]}
48... gxf4 {[%clk 0:00:19.5]} 49. Bf3 {[%clk 0:00:04.6]} 49... Ke8 {[%clk
0:00:17.5]} 50. Ke4 {[%clk 0:00:04.6]} 50... Bd7 {[%clk 0:00:14.9]} 51. Bxf4
{[%clk 0:00:02.4]} 51... Bc6+ {[%clk 0:00:14.6]} 52. Ke3 {[%clk 0:00:02.7]}
52... Bxf3 {[%clk 0:00:13.7]} 53. Kxf3 {[%clk 0:00:02.9]} 53... Bg1 {[%clk
0:00:13.7]} 54. Bd6 {[%clk 0:00:01.2]} 54... Kd7 {[%clk 0:00:13.6]} 0-1

[Event "*** SCC Grand Prix: Titled Tuesday Blitz"]
[Site "Chess.com"]
[Date "2020.07.07"]
[Round "8"]
[White "Elshan1985"]
[Black "DenisQ"]
[Result "1/2-1/2"]
[WhiteElo "2835"]
[BlackElo "2665"]
[TimeControl "180+1"]
[EndTime "11:37:06 PDT"]
[Termination "Game drawn - insufficient material"]

1. e4 {[%clk 0:02:49.3]} 1... c6 {[%clk 0:02:58.9]} 2. d4 {[%clk 0:02:48.8]}
2... d5 {[%clk 0:02:59.7]} 3. e5 {[%clk 0:02:48.8]} 3... Bf5 {[%clk 0:02:59]} 4.
h4 {[%clk 0:02:45.5]} 4... h6 {[%clk 0:02:55.4]} 5. g4 {[%clk 0:02:42.7]} 5...
Bd7 {[%clk 0:02:51.6]} 6. h5 {[%clk 0:02:42.3]} 6... c5 {[%clk 0:02:50.3]} 7. c3
{[%clk 0:02:41.6]} 7... Nc6 {[%clk 0:02:49.2]} 8. Be3 {[%clk 0:02:40.8]} 8...
Qb6 {[%clk 0:02:45.9]} 9. Qb3 {[%clk 0:02:39.1]} 9... cxd4 {[%clk 0:02:40.4]}
10. Qxb6 {[%clk 0:02:36.8]} 10... axb6 {[%clk 0:02:39.8]} 11. cxd4 {[%clk
0:02:37.7]} 11... Nb4 {[%clk 0:02:38.1]} 12. Kd2 {[%clk 0:02:32.8]} 12... Rxa2
{[%clk 0:02:35]} 13. Rxa2 {[%clk 0:02:32.6]} 13... Nxa2 {[%clk 0:02:35.9]} 14.
Be2 {[%clk 0:02:24.4]} 14... e6 {[%clk 0:02:34.6]} 15. Nc3 {[%clk 0:02:23.4]}
15... Nxc3 {[%clk 0:02:25.7]} 16. bxc3 {[%clk 0:02:24.3]} 16... Ne7 {[%clk
0:02:20.6]} 17. Nf3 {[%clk 0:02:20.3]} 17... Nc8 {[%clk 0:02:19.4]} 18. Rb1
{[%clk 0:02:10.3]} 18... Be7 {[%clk 0:02:18.1]} 19. Ne1 {[%clk 0:02:10.7]} 19...
f6 {[%clk 0:02:13.9]} 20. f4 {[%clk 0:02:10.3]} 20... Kd8 {[%clk 0:02:08.1]} 21.
Nd3 {[%clk 0:02:08.3]} 21... Kc7 {[%clk 0:02:08.2]} 22. Bf3 {[%clk 0:02:05.4]}
22... Na7 {[%clk 0:02:05.1]} 23. exf6 {[%clk 0:02:00.8]} 23... gxf6 {[%clk
0:02:04.1]} 24. f5 {[%clk 0:01:57.3]} 24... exf5 {[%clk 0:02:00.9]} 25. Nf4
{[%clk 0:01:55.4]} 25... fxg4 {[%clk 0:01:48.7]} 26. Nxd5+ {[%clk 0:01:55.3]}
26... Kd8 {[%clk 0:01:43.5]} 27. Bg2 {[%clk 0:01:52.7]} 27... Nc8 {[%clk
0:01:39.8]} 28. Nxb6 {[%clk 0:01:47.2]} 28... Nxb6 {[%clk 0:01:32.9]} 29. Rxb6
{[%clk 0:01:48.1]} 29... Bc8 {[%clk 0:01:33.1]} 30. Bf4 {[%clk 0:01:43.4]} 30...
f5 {[%clk 0:01:07.4]} 31. Rxh6 {[%clk 0:01:21.3]} 31... Rxh6 {[%clk 0:01:08.3]}
32. Bxh6 {[%clk 0:01:21.5]} 32... Ke8 {[%clk 0:01:08]} 33. Ke3 {[%clk
0:01:19.5]} 33... Kf7 {[%clk 0:01:05.3]} 34. Bd5+ {[%clk 0:01:16.5]} 34... Kf6
{[%clk 0:01:04.2]} 35. Bf4 {[%clk 0:01:07.3]} 35... b5 {[%clk 0:01:04]} 36. h6
{[%clk 0:01:06.9]} 36... Kg6 {[%clk 0:01:02.3]} 37. Bc6 {[%clk 0:01:05.9]} 37...
b4 {[%clk 0:00:59.3]} 38. c4 {[%clk 0:00:58.7]} 38... b3 {[%clk 0:00:56.4]} 39.
Kd3 {[%clk 0:00:58.5]} 39... Ba6 {[%clk 0:00:39]} 40. Bb5 {[%clk 0:00:44.7]}
40... Bb7 {[%clk 0:00:39]} 41. d5 {[%clk 0:00:43.2]} 41... Bf6 {[%clk
0:00:35.1]} 42. Be8+ {[%clk 0:00:40.3]} 42... Kh7 {[%clk 0:00:34.7]} 43. Bd7
{[%clk 0:00:40.3]} 43... Kg6 {[%clk 0:00:33.5]} 44. Bc6 {[%clk 0:00:35.5]} 44...
Ba6 {[%clk 0:00:29.9]} 45. Be8+ {[%clk 0:00:31.3]} 45... Kh7 {[%clk 0:00:29.6]}
46. Bb5 {[%clk 0:00:30.2]} 46... Bb7 {[%clk 0:00:28.9]} 47. Ba4 {[%clk
0:00:26.5]} 47... b2 {[%clk 0:00:27.9]} 48. Bc2 {[%clk 0:00:26.9]} 48... Kg6
{[%clk 0:00:17]} 49. Ke3 {[%clk 0:00:26.4]} 49... Ba6 {[%clk 0:00:16.2]} 50. c5
{[%clk 0:00:21.5]} 50... Bc4 {[%clk 0:00:16.3]} 51. d6 {[%clk 0:00:17]} 51...
Bb5 {[%clk 0:00:16.9]} 52. h7 {[%clk 0:00:14.4]} 52... Kxh7 {[%clk 0:00:15.5]}
53. Bxf5+ {[%clk 0:00:13.7]} 53... Kg7 {[%clk 0:00:16.2]} 54. Bb1 {[%clk
0:00:12.3]} 54... Kf7 {[%clk 0:00:15.3]} 55. Ba2+ {[%clk 0:00:12]} 55... Ke8
{[%clk 0:00:14.9]} 56. Ke4 {[%clk 0:00:12.1]} 56... Kd7 {[%clk 0:00:13.6]} 57.
Kf5 {[%clk 0:00:12.1]} 57... Bd4 {[%clk 0:00:13.3]} 58. Kxg4 {[%clk 0:00:10.8]}
58... Bxc5 {[%clk 0:00:13]} 59. Kf3 {[%clk 0:00:10.4]} 59... Bd3 {[%clk
0:00:12.7]} 60. Be5 {[%clk 0:00:08.8]} 60... b1=Q {[%clk 0:00:12.8]} 61. Bxb1
{[%clk 0:00:09.4]} 61... Bxb1 {[%clk 0:00:13.6]} 62. Kg3 {[%clk 0:00:09.7]}
62... Ba2 {[%clk 0:00:14.5]} 63. Bf4 {[%clk 0:00:10]} 63... Bxd6 {[%clk
0:00:15.4]} 64. Bxd6 {[%clk 0:00:10.2]} 1/2-1/2

[Event "*** SCC Grand Prix: Titled Tuesday Blitz"]
[Site "Chess.com"]
[Date "2020.07.07"]
[Round "8"]
[White "plumalka"]
[Black "AldokhinIvan"]
[Result "0-1"]
[WhiteElo "2400"]
[BlackElo "2526"]
[TimeControl "180+1"]
[EndTime "11:37:07 PDT"]
[Termination "AldokhinIvan won by resignation"]

1. e4 {[%clk 0:03:00.9]} 1... c5 {[%clk 0:02:58.1]} 2. Nf3 {[%clk 0:03:00.9]}
2... e6 {[%clk 0:02:59]} 3. d4 {[%clk 0:03:01.3]} 3... cxd4 {[%clk 0:02:59.9]}
4. Nxd4 {[%clk 0:03:01.4]} 4... a6 {[%clk 0:02:59.9]} 5. Bd3 {[%clk 0:03:00.6]}
5... Qc7 {[%clk 0:03:00.2]} 6. O-O {[%clk 0:02:58]} 6... Nf6 {[%clk 0:03:00.8]}
7. Nc3 {[%clk 0:02:57.4]} 7... Bd6 {[%clk 0:03:01]} 8. Kh1 {[%clk 0:02:50.4]}
8... Nc6 {[%clk 0:03:00.2]} 9. Nb3 {[%clk 0:02:49.4]} 9... Bf4 {[%clk
0:02:41.2]} 10. Qf3 {[%clk 0:02:40.9]} 10... Bxc1 {[%clk 0:02:38.5]} 11. Raxc1
{[%clk 0:02:41.8]} 11... O-O {[%clk 0:02:37.2]} 12. Qh3 {[%clk 0:02:38.7]} 12...
d6 {[%clk 0:02:11.5]} 13. f4 {[%clk 0:02:38.2]} 13... b5 {[%clk 0:02:11.7]} 14.
Rce1 {[%clk 0:02:32.8]} 14... e5 {[%clk 0:01:57.9]} 15. Qh4 {[%clk 0:02:25.4]}
15... Nb4 {[%clk 0:01:14.3]} 16. fxe5 {[%clk 0:02:13]} 16... dxe5 {[%clk
0:01:12.5]} 17. Nd5 {[%clk 0:02:00]} 17... Nfxd5 {[%clk 0:01:07.6]} 18. exd5
{[%clk 0:02:00.8]} 18... Nxd3 {[%clk 0:01:07.4]} 19. cxd3 {[%clk 0:01:57.7]}
19... Bb7 {[%clk 0:01:05.6]} 20. d4 {[%clk 0:01:56.2]} 20... Bxd5 {[%clk
0:00:51.4]} 21. Rxe5 {[%clk 0:01:51.6]} 21... Qc4 {[%clk 0:00:46.6]} 22. Nd2
{[%clk 0:01:41.8]} 22... Qc6 {[%clk 0:00:42.7]} 23. Rg5 {[%clk 0:01:38.9]} 23...
f6 {[%clk 0:00:40.9]} 24. Rg3 {[%clk 0:01:38.7]} 24... Rae8 {[%clk 0:00:40]} 25.
Qg4 {[%clk 0:01:27.7]} 25... Rf7 {[%clk 0:00:39.7]} 26. Nf3 {[%clk 0:01:26.2]}
26... Re4 {[%clk 0:00:36.7]} 27. Qh3 {[%clk 0:01:21.7]} 27... Be6 {[%clk
0:00:33.9]} 28. Qh5 {[%clk 0:01:16.9]} 28... Qd5 {[%clk 0:00:33.9]} 29. Qh6
{[%clk 0:01:06.3]} 29... Rg4 {[%clk 0:00:25.6]} 30. Rxg4 {[%clk 0:01:03.1]}
30... Bxg4 {[%clk 0:00:26.5]} 31. Qf4 {[%clk 0:01:03.3]} 31... Bd7 {[%clk
0:00:26.3]} 32. Nh4 {[%clk 0:00:58.2]} 32... Bc6 {[%clk 0:00:24.3]} 33. Rf2
{[%clk 0:00:53.3]} 33... g5 {[%clk 0:00:23.3]} 34. Qb8+ {[%clk 0:00:49.2]} 34...
Rf8 {[%clk 0:00:22.8]} 35. Qg3 {[%clk 0:00:49.3]} 35... Qe4 {[%clk 0:00:22]} 36.
Nf3 {[%clk 0:00:47.2]} 36... Qb1+ {[%clk 0:00:19.7]} 37. Ng1 {[%clk 0:00:47.6]}
37... Qe4 {[%clk 0:00:18.1]} 38. h3 {[%clk 0:00:41.6]} 38... Kg7 {[%clk
0:00:18.2]} 39. Nf3 {[%clk 0:00:39.5]} 39... Rf7 {[%clk 0:00:18.4]} 40. Nh2
{[%clk 0:00:30.2]} 40... h6 {[%clk 0:00:18]} 41. Ng4 {[%clk 0:00:30.3]} 41...
Qg6 {[%clk 0:00:15.9]} 42. Ne3 {[%clk 0:00:30.3]} 42... f5 {[%clk 0:00:15]} 43.
Qe5+ {[%clk 0:00:30.3]} 43... Kh7 {[%clk 0:00:13]} 44. Nxf5 {[%clk 0:00:30.1]}
44... Bd7 {[%clk 0:00:12.7]} 45. Ne7 {[%clk 0:00:23.4]} 45... Qb1+ {[%clk
0:00:10.1]} 46. Kh2 {[%clk 0:00:18.3]} 46... Rxf2 {[%clk 0:00:10.6]} 47. Qd6
{[%clk 0:00:15.6]} 47... Qe4 {[%clk 0:00:08.1]} 48. Nd5 {[%clk 0:00:13.2]} 48...
Qe6 {[%clk 0:00:08]} 49. Qc5 {[%clk 0:00:10.6]} 49... Qf5 {[%clk 0:00:07.4]} 50.
Ne3 {[%clk 0:00:09.7]} 50... Qf4+ {[%clk 0:00:07.1]} 51. Kh1 {[%clk 0:00:07.5]}
51... Qxe3 {[%clk 0:00:07.4]} 52. Qc7 {[%clk 0:00:07]} 52... Rf1+ {[%clk
0:00:07]} 53. Kh2 {[%clk 0:00:06.4]} 53... Qf4+ {[%clk 0:00:07.6]} 0-1

[Event "*** SCC Grand Prix: Titled Tuesday Blitz"]
[Site "Chess.com"]
[Date "2020.07.07"]
[Round "8"]
[White "aripov96"]
[Black "Klavdia_Nik"]
[Result "1/2-1/2"]
[WhiteElo "2361"]
[BlackElo "2055"]
[TimeControl "180+1"]
[EndTime "11:37:08 PDT"]
[Termination "Game drawn by repetition"]

1. e4 {[%clk 0:02:58.3]} 1... e6 {[%clk 0:02:58.9]} 2. d4 {[%clk 0:02:54]} 2...
d5 {[%clk 0:02:57.9]} 3. Nc3 {[%clk 0:02:53.6]} 3... dxe4 {[%clk 0:02:58.2]} 4.
Nxe4 {[%clk 0:02:53.4]} 4... Bd7 {[%clk 0:02:58.8]} 5. Bd3 {[%clk 0:02:50.9]}
5... Bc6 {[%clk 0:02:59.2]} 6. Ne2 {[%clk 0:02:50.3]} 6... Nd7 {[%clk
0:02:59.5]} 7. O-O {[%clk 0:02:49.8]} 7... Ngf6 {[%clk 0:02:59.2]} 8. f3 {[%clk
0:02:43]} 8... g6 {[%clk 0:02:47.9]} 9. Bg5 {[%clk 0:02:39.5]} 9... Bg7 {[%clk
0:02:47.4]} 10. c3 {[%clk 0:02:22.1]} 10... O-O {[%clk 0:02:45.7]} 11. Qd2
{[%clk 0:02:19.2]} 11... b6 {[%clk 0:02:38]} 12. N2g3 {[%clk 0:02:11.4]} 12...
e5 {[%clk 0:02:19.6]} 13. Nxf6+ {[%clk 0:01:37.1]} 13... Bxf6 {[%clk 0:02:16]}
14. Bxf6 {[%clk 0:01:37.4]} 14... Qxf6 {[%clk 0:02:14.8]} 15. Ne4 {[%clk
0:01:38]} 15... Qe7 {[%clk 0:02:03.7]} 16. Rfe1 {[%clk 0:01:20.4]} 16... exd4
{[%clk 0:02:00.8]} 17. cxd4 {[%clk 0:01:20.8]} 17... Rad8 {[%clk 0:01:47.9]} 18.
Rac1 {[%clk 0:01:18.9]} 18... Nb8 {[%clk 0:01:38.1]} 19. Qh6 {[%clk 0:01:07.3]}
19... Bxe4 {[%clk 0:01:20.9]} 20. Rxe4 {[%clk 0:01:06.2]} 20... Qf6 {[%clk
0:01:13]} 21. Rh4 {[%clk 0:01:03]} 21... Qg7 {[%clk 0:01:08.8]} 22. Qxg7+ {[%clk
0:01:03]} 22... Kxg7 {[%clk 0:01:08.2]} 23. Rxc7 {[%clk 0:01:03.5]} 23... Rd7
{[%clk 0:01:03.4]} 24. Rxd7 {[%clk 0:00:50.4]} 24... Nxd7 {[%clk 0:01:03.6]} 25.
Re4 {[%clk 0:00:51.1]} 25... Kf6 {[%clk 0:00:31.5]} 26. Re2 {[%clk 0:00:50.4]}
26... Rd8 {[%clk 0:00:26.5]} 27. Kf2 {[%clk 0:00:42.4]} 27... Nf8 {[%clk
0:00:26.5]} 28. Rc2 {[%clk 0:00:18]} 28... Rxd4 {[%clk 0:00:24]} 29. Ke3 {[%clk
0:00:17.4]} 29... Rd7 {[%clk 0:00:23.3]} 30. Bb5 {[%clk 0:00:17.6]} 30... Re7+
{[%clk 0:00:21.7]} 31. Kf2 {[%clk 0:00:15.7]} 31... Ne6 {[%clk 0:00:22.1]} 32.
Bc4 {[%clk 0:00:14.9]} 32... h5 {[%clk 0:00:16.4]} 33. Bxe6 {[%clk 0:00:14.6]}
33... Rxe6 {[%clk 0:00:16.4]} 34. Rc7 {[%clk 0:00:14.1]} 34... a5 {[%clk
0:00:17]} 35. Rb7 {[%clk 0:00:13.9]} 35... h4 {[%clk 0:00:16.8]} 36. b3 {[%clk
0:00:10.7]} 36... g5 {[%clk 0:00:16.6]} 37. f4 {[%clk 0:00:09.7]} 37... g4
{[%clk 0:00:16.4]} 38. h3 {[%clk 0:00:08]} 38... gxh3 {[%clk 0:00:14.4]} 39.
gxh3 {[%clk 0:00:08.4]} 39... Rc6 {[%clk 0:00:14]} 40. Kf3 {[%clk 0:00:08.2]}
40... Kg6 {[%clk 0:00:11.8]} 41. Kg4 {[%clk 0:00:08.4]} 41... Rf6 {[%clk
0:00:09.6]} 42. f5+ {[%clk 0:00:03.6]} 42... Rxf5 {[%clk 0:00:07.8]} 43. Rxb6+
{[%clk 0:00:04.1]} 43... f6 {[%clk 0:00:06.9]} 44. Kxh4 {[%clk 0:00:03]} 44...
Rf4+ {[%clk 0:00:05.6]} 45. Kg3 {[%clk 0:00:03.2]} 45... Rf5 {[%clk 0:00:05.4]}
46. Ra6 {[%clk 0:00:03.3]} 46... Rb5 {[%clk 0:00:04.6]} 47. h4 {[%clk
0:00:03.6]} 47... Rc5 {[%clk 0:00:03.7]} 48. Ra8 {[%clk 0:00:03.9]} 48... Rd5
{[%clk 0:00:03]} 49. Kg4 {[%clk 0:00:04.2]} 49... Rd4+ {[%clk 0:00:02.6]} 50.
Kg3 {[%clk 0:00:03.5]} 50... Rd5 {[%clk 0:00:02.9]} 51. Kf4 {[%clk 0:00:03.6]}
51... Rd4+ {[%clk 0:00:03.2]} 52. Kg3 {[%clk 0:00:03.9]} 52... Rd5 {[%clk
0:00:02.9]} 1/2-1/2